Cogmind - Beta 9.2 @@@ ROGUE MODE // 2019.11.14 @ 04:50:12 Player: Finestep Result: Destroyed by D-53 Grenadier with Mini Grenade Launcher Performance ------------- Evolutions (0) 0 Regions Visited (4) 800 Robots Destroyed (38) 190 Value Destroyed (666) 666 Prototype IDs (1) 20 Alien Tech Used (0) 0 Bonus (0) 0 TOTAL SCORE: 1676 Bonus ------- None Cogmind --------- Core Integrity 0/250 Matter 253/300 Energy 182/250 System Corruption 0% Temperature Cool (0) Movement Treading (180) Ox1 Location -9/Mines Parts ------- > --- POWER (1) -------- Ion Engine > --- PROPULSION (2) --- Light Treads Light Treads > --- UTILITY (2) ------ Large Storage Unit High-capacity Storage Unit > --- WEAPON (2) ------- Heavy Assault Rifle Heavy Assault Rifle > --- INVENTORY (18) --- Light Nuclear Core Light Fission Core Light Treads Advanced Treads Advanced Treads Improved Heat Sink Large Storage Unit High-capacity Battery (400) High-capacity Matter Pod (200) Transport Network Coupler Hacking Suite Heavy Particle Cannon Light Assault Rifle Heavy Assault Rifle Grenade Launcher Grenade Launcher Mining Laser Peak State ------------ > --- POWER ------------ Light Ion Engine > --- PROPULSION ------- Light Treads Light Treads > --- UTILITY ---------- Large Storage Unit High-capacity Storage Unit > --- WEAPON ----------- Heavy Assault Rifle Heavy Assault Rifle > --- INVENTORY -------- Ion Engine Light Nuclear Core Light Treads Advanced Treads Advanced Treads Improved Heat Sink Large Storage Unit High-capacity Battery High-capacity Matter Pod Transport Network Coupler Hacking Suite Heavy Particle Cannon Light Assault Rifle Heavy Assault Rifle Grenade Launcher Grenade Launcher Mining Laser [Rating: 12] Favorites ----------- Power Light Ion Engine Engine Light Ion Engine Propulsion Light Treads Treads Light Treads Wheel Compact Wheel Flight Unit Improved Flight Unit Utility Large Storage Unit Storage Large Storage Unit Weapon Heavy Assault Rifle Energy Gun EM Pulse Gun Ballistic Gun Heavy Assault Rifle Special Weapon Mining Laser Build | -11 -10 -10 -10 -9 ------- Run | Scr Mat Min Exi Min Slots Evolved . | . . . . . Power . | . . . . . Propulsion . | . . . . . Utility . | . . . . . Weapon . | . . . . . Parts Attached 42 | 8 26 7 . 1 Power 5 | 1 2 1 . 1 Engine 5 | 1 2 1 . 1 Core . | . . . . . Reactor . | . . . . . Propulsion 14 | 3 9 2 . . Treads 3 | 1 . 2 . . Leg . | . . . . . Wheel 10 | 2 8 . . . Hover . | . . . . . Flight 1 | . 1 . . . Utility 7 | 2 4 1 . . Device . | . . . . . Storage 7 | 2 4 1 . . Processor . | . . . . . Hackware . | . . . . . Protection . | . . . . . Artifact . | . . . . . Weapon 16 | 2 11 3 . . Energy Gun 2 | . 2 . . . Energy Cannon . | . . . . . Ballistic Gun 11 | 2 7 2 . . Ballistic Cannon . | . . . . . Launcher . | . . . . . Special Weapon 3 | . 2 1 . . Impact Weapon . | . . . . . Slashing Weapon . | . . . . . Piercing Weapon . | . . . . . Special Melee Weapon . | . . . . . Unidentified Prototypes 1 | . 1 . . . Parts Lost 8 | . 5 2 . 1 Power 4 | . 2 1 . 1 Propulsion 1 | . 1 . . . Utility . | . . . . . Weapon 3 | . 2 1 . . Highest Loss Streak 2 | . 2 1 . 1 Average Slot Usage (%) 97 | . 92 99 100 100 Engine 11 | . 7 13 14 14 Treads 16 | . . 25 28 28 Wheel 10 | . 27 2 . . Storage 28 | . 28 28 28 28 Ballistic Gun 26 | . 25 27 28 28 Naked Turns . | . . . . . Heaviest Build 57 | 16 41 57 57 57 Greatest Support 40 | 32 32 40 40 40 Greatest Overweight (x) 2 | 2 2 1 1 1 Average Overweight (x) . | . . . 1 1 Largest Inventory Capacity 18 | 8 16 18 18 18 Average Capacity 14 | 7 12 16 18 18 Most Carried 18 | 7 16 17 18 18 Average Carried 13 | 3 10 15 17 17 Final Capacity 18 | 8 16 18 18 18 Final Carried 18 | 7 15 17 18 17 Class Distribution -------------------- 94% | Mutant 5% | Scavenger-Mutant Dominant Class ---------------- Mutant | -10/Materials Mutant | -10/Mines Mutant | -10/Exiles Mutant | -9/Mines Resources | -11 -10 -10 -10 -9 ----------- Run | Scr Mat Min Exi Min Matter Collected 1469 | 251 641 207 370 . Remotely . | . . . . . Salvage Created 1185 | 126 770 245 . 44 Parts 82 | 13 56 12 . 1 Haulers Intercepted 2 | . 2 . . . Recyclers Shooed . | . . . . . Parts Field Recycled . | . . . . . Retrieved Matter . | . . . . . Parts Self-Destructed . | . . . . . Prevented . | . . . . . Kills | -11 -10 -10 -10 -9 ------- Run | Scr Mat Min Exi Min Combat Hostiles Destroyed 24 | . 18 5 . 1 Guns 24 | . 18 5 . 1 Classes Destroyed 9 | 3 5 . . 1 Worker 5 | 1 3 1 . . Tunneler 2 | 2 . . . . Hauler 2 | . 2 . . . Recycler 3 | 1 1 1 . . Operator 1 | . 1 . . . Watcher 1 | . 1 . . . Swarmer 12 | . 9 3 . . Grunt 11 | . 9 2 . . Demolisher 1 | . . . . 1 Best Kill Streak 6 | 2 6 5 . 1 Combat Bots Only 3 | . 3 3 . 1 Max Kills in Single Turn 1 | 1 1 1 . 1 Gunslinging . | . . . . . Exploded . | . . . . . Melee . | . . . . . Uniques/NPCs Destroyed . | . . . . . Combat | -11 -10 -10 -10 -9 -------- Run | Scr Mat Min Exi Min Damage Taken 1508 | . 855 260 . 393 Core 262 | . 155 16 . 91 Absorbed by Shields . | . . . . . Core Remaining (%) 100 | 100 . . . . Volleys Fired 123 | 10 79 27 . 7 Largest 2 | 2 2 2 . 2 Hottest 100 | 40 100 100 . 46 Shots Fired 232 | 20 148 50 . 14 Gun 221 | 20 140 47 . 14 Cannon . | . . . . . Launcher . | . . . . . Special 11 | . 8 3 . . Kinetic 212 | 20 131 47 . 14 Thermal 11 | . 8 3 . . Explosive . | . . . . . Electromagnetic 9 | . 9 . . . Robot Hit Streak 13 | 8 13 9 . 3 Robot Miss Streak 4 | 2 3 2 . 4 Penetration Max . | . . . . . Secondary Targets 3 | . . 2 . 1 Max Gunslinging Chain 1 | . . 1 . 1 Shots Hit Robots 129 | 14 78 31 . 6 Core Hits 54 | 7 35 10 . 2 Critical Hits . | . . . . . Critical Kills . | . . . . . Critical Parts Destroyed . | . . . . . Melee Attacks . | . . . . . Impact . | . . . . . Slashing . | . . . . . Piercing . | . . . . . Sneak Attacks . | . . . . . Combat Hostiles . | . . . . . Follow-up Attacks . | . . . . . Damage Inflicted 1790 | 154 1122 421 . 93 Guns 1770 | 154 1102 421 . 93 Cannons . | . . . . . Explosions 20 | . 20 . . . Melee . | . . . . . Ramming . | . . . . . Kinetic 1690 | 154 1022 421 . 93 Thermal 20 | . 20 . . . Explosive . | . . . . . Electromagnetic 80 | . 80 . . . Impact . | . . . . . Slashing . | . . . . . Piercing . | . . . . . Highest Corruption . | . . . . . Average Corruption . | . . . . . Corruption Purged . | . . . . . Overload Shots . | . . . . . Overflow Damage 74 | . 74 . . . Projectiles . | . . . . . Explosions 74 | . 74 . . . Melee . | . . . . . Knockbacks . | . . . . . Impact . | . . . . . Kinetic . | . . . . . Secondary . | . . . . . Self-Inflicted Damage 133 | . 133 . . . Shots 2 | . 2 . . . Rammed . | . . . . . Targets Rammed . | . . . . . Kicked . | . . . . . Crushed . | . . . . . Highest Temperature 40 | . 40 20 . . Average Temperature 7 | . 9 5 . . Received Heat Transfer 354 | . 258 96 . . Siege Activations . | . . . . . Robots Corrupted . | . . . . . Combat Hostiles . | . . . . . Parts Fried . | . . . . . Impact Corruptions . | . . . . . Robots Melted . | . . . . . Combat Hostiles . | . . . . . Parts Melted . | . . . . . Heat Transferred 50 | . 50 . . . Parts Sabotaged . | . . . . . Parts Stolen . | . . . . . Parts Stripped . | . . . . . Power Chain Reactions . | . . . . . Missiles Intercepted . | . . . . . Alert | -11 -10 -10 -10 -9 ------- Run | Scr Mat Min Exi Min Peak Influence 315 | 20 315 204 . 25 Average Influence 89 | 7 147 56 . 4 Maximum Alert Level 1 | . 1 1 . . Low Security (%) 89 | 100 84 91 . 100 Level 1 10 | . 15 8 . . Level 2 . | . . . . . Level 3 . | . . . . . Level 4 . | . . . . . Level 5 . | . . . . . High Security . | . . . . . Max Security . | . . . . . Squads Dispatched 6 | . 5 1 . . Investigation 3 | . 2 1 . . Extermination . | . . . . . Reinforcement 3 | . 3 . . . Assault . | . . . . . Garrison . | . . . . . Intercept . | . . . . . Construction Impeded . | . . . . . Haulers Reinforced . | . . . . . Stealth | -11 -10 -10 -10 -9 --------- Run | Scr Mat Min Exi Min Distress Signals 3 | . 3 . . . Communications Jammed . | . . . . . Distress Signals . | . . . . . Times Spotted 53 | . 31 8 . 14 Peak Tracking Total 11 | . 5 3 . 11 Tactical Retreats 3 | . 2 1 . . Traps | -11 -10 -10 -10 -9 ------- Run | Scr Mat Min Exi Min Traps Triggered . | . . . . . Indirectly . | . . . . . Trap Hack Attempts . | . . . . . Triggered . | . . . . . Disarmed . | . . . . . Reprogrammed . | . . . . . Reused . | . . . . . Traps Extracted . | . . . . . Installed . | . . . . . Triggered . | . . . . . Machines | -11 -10 -10 -10 -9 ---------- Run | Scr Mat Min Exi Min Machines Disabled 2 | . 2 . . . Max in Single Turn 2 | . 2 . . . Machines Sabotaged . | . . . . . Garrisons Compromised . | . . . . . Overloaded Fab Kills . | . . . . . Fab Network Shutdowns . | . . . . . Hacking | -11 -10 -10 -10 -9 --------- Run | Scr Mat Min Exi Min Machines Accessed 6 | . 4 1 1 . Terminals 2 | . 2 . . . Fabricators . | . . . . . Repair Stations . | . . . . . Recycling Units 2 | . 2 . . . Scanalyzers . | . . . . . Garrison Access . | . . . . . Total Hacks 11 | . 9 1 1 . Successful 7 | . 5 1 1 . Failed 4 | . 4 . . . Catastrophic . | . . . . . Database Lockouts . | . . . . . Manual 5 | . 5 . . . Terminals 5 | . 5 . . . Fabricators . | . . . . . Repair Stations . | . . . . . Recycling Units 4 | . 4 . . . Scanalyzers . | . . . . . Garrison Access . | . . . . . Terminal Hacks 4 | . 2 1 1 . Record 1 | . . . 1 . Open Door 1 | . . 1 . . Unreport Threat 1 | . 1 . . . Locate Traps 1 | . 1 . . . Fabricator Hacks . | . . . . . Repair Station Hacks . | . . . . . Recycling Unit Hacks 1 | . 1 . . . Retrieve Components 1 | . 1 . . . Scanalyzer . | . . . . . Garrison Access Hacks . | . . . . . Unauthorized Hacks 7 | . 7 . . . Terminals . | . . . . . Fabricators . | . . . . . Repair Stations . | . . . . . Recycling Units 2 | . 2 . . . Tunnel 2 | . 2 . . . Scanalyzers . | . . . . . Garrison Access . | . . . . . Data Cores Recovered . | . . . . . Used . | . . . . . Hacking Detections 2 | . 2 . . . Full Trace Events . | . . . . . Feedback Events . | . . . . . Feedback Blocked . | . . . . . Robot Schematics Acquired . | . . . . . Robots Built . | . . . . . Matter . | . . . . . Time . | . . . . . Total Robot Build Rating . | . . . . . Part Schematics Acquired . | . . . . . Parts Built . | . . . . . Matter . | . . . . . Time . | . . . . . Total Part Build Rating . | . . . . . Parts Repaired . | . . . . . Time . | . . . . . Parts Recycled . | . . . . . Recycled Matter . | . . . . . Retrieved Matter . | . . . . . Retrieved Components 1 | . 1 . . . Parts Scanalyzed . | . . . . . Part Schematics Acquired . | . . . . . Parts Damaged . | . . . . . Bothacking | -11 -10 -10 -10 -9 ------------ Run | Scr Mat Min Exi Min Used RIF Installer . | . . . . . Robots Hacked . | . . . . . Non-combat . | . . . . . Combat . | . . . . . Robot Hacks Applied . | . . . . . Relay Couplers Released . | . . . . . Robots Rewired . | . . . . . Allies Hacked . | . . . . . Hacks Repelled . | . . . . . Allies | -11 -10 -10 -10 -9 -------- Run | Scr Mat Min Exi Min Total Allies 3 | . . 3 . . Largest Group 3 | . . 3 3 3 Highest-Rated Group 40 | . . 40 40 40 Highest-Rated Ally 16 | . . 16 16 16 Total Orders 1 | . . . . 1 GOTO 1 | . . . . 1 Ally Attacks 12 | . . . . 12 Total Damage 107 | . . . . 107 Kills 3 | . . . . 3 Allies Corrupted . | . . . . . Allies Melted . | . . . . . Intel | -11 -10 -10 -10 -9 ------- Run | Scr Mat Min Exi Min Robot Analysis Total . | . . . . . Derelict Logs Recovered 1 | . . 1 . . Drone Launches . | . . . . . Drone Recoveries . | . . . . . Exploration | -11 -10 -10 -10 -9 ------------- Run | Scr Mat Min Exi Min Turns Passed 2555 | 103 878 1071 414 89 Spaces Moved 1401 | 57 516 560 230 38 Core 2 | 2 . . . . Treads 752 | . . 484 230 38 Legs . | . . . . . Wheels 647 | 55 516 76 . . Hover . | . . . . . Flight . | . . . . . Fastest Speed 50 | 50 90 100 180 180 Average Speed 141 | 100 96 168 180 180 Slowest Speed 180 | 150 120 180 180 180 Overloaded Moves . | . . . . . Propulsion Burnouts . | . . . . . Robots Hopped . | . . . . . Cave-ins Triggered . | . . . . . Exploration Rate (%) 49 | 4 82 94 59 8 Regions Visited 4 Branch Regions 3 Pre-discovered Areas 3 | . 2 . . 1 Known Exits Taken . | . . . . . Unknown Exits Taken 4 | 1 1 1 1 . Scrap Searched 2 | . . 2 . . Spaces Dug 10 | . 7 3 . . Terrain Destroyed 59 | . 56 3 . . Melee . | . . . . . Projectile 11 | . 8 3 . . AOE 48 | . 48 . . . Actions | -11 -10 -10 -10 -9 --------- Run | Scr Mat Min Exi Min Total 1734 | 81 738 637 232 46 Wait 112 | . 83 29 . . Move 1397 | 56 515 559 229 38 Hop . | . . . . . Pick Up 32 | 6 15 9 2 . Fast Attach 13 | 8 5 . . . Attach 7 | . 4 2 . 1 Detach 3 | 1 2 . . . Swap 22 | . 17 5 . . Drop 25 | . 18 6 1 . Fire 123 | 10 79 27 . 7 Melee . | . . . . . Ram . | . . . . . Kick . | . . . . . Crush . | . . . . . Escape Stasis . | . . . . . Rewire . | . . . . . Trap . | . . . . . Miscellaneous . | . . . . . Route ------- -11/Scrapyard -10/Materials (discovered 4 exits: [*Mat x3] / *Min) -10/Mines (discovered 3 exits: [*Mat x2] / *Exi) -10/Exiles -9/Mines History --------- Turn | Location | Event 19 | -11/Scrapyard | Discovered new exit (range 16) 104 | -11/Scrapyard | Entered Materials 300 | -10/Materials | Build established: Mutant 333 | -10/Materials | Discovered new exit (range 14) 379 | -10/Materials | Discovered new exit (range 7) 647 | -10/Materials | Discovered new exit (range 16) 829 | -10/Materials | Core integrity fell below 50% 923 | -10/Materials | Discovered new exit (range 10) 982 | -10/Materials | Entered Mines 1008 | -10/Mines | Met a Derelict bent on vengeance 1009 | -10/Mines | Discovered new exit (range 10) 1304 | -10/Mines | Discovered new exit (range 13) 1376 | -10/Mines | Learned Materials stockpile data 1447 | -10/Mines | Met a Derelict shopkeep closing up shop 1757 | -10/Mines | Assisted by bots powering up and referring to "LRC-V3" 2033 | -10/Mines | Deemed a non-threat by the Exiles lab entrance 2033 | -10/Mines | Discovered new exit (range 5) 2053 | -10/Mines | Entered Exiles 2053 | -10/Exiles | Found Exiles lab abandoned 2053 | -10/Exiles | Accompanied by 3 allies 2451 | -10/Exiles | Discovered new exit (range 11) 2467 | -10/Exiles | Entered Mines 2467 | -9/Mines | Accompanied by 3 allies 2468 | -9/Mines | Learned location of Storage (-7) 2508 | -9/Mines | Assembled infested the area 2528 | -9/Mines | Core integrity fell below 20% 2556 | -9/Mines | Destroyed by D-53 Grenadier with Mini Grenade Launcher Last Messages --------------- squad. 02519_ as-03613 destroyed. 02526_ Trooper 1a suffers critical hit. 02526_ Trooper 1a destroyed. 02528_ as-49185 destroyed. 02528_ as-82557 destroyed. 02528_ as-47134 destroyed. 02528_ as-81791 destroyed. 02530_ as-62076 destroyed. 02530_ U-05 Engineer destroyed. 02531_ as-91027 destroyed. 02532_ Mercenary 1a destroyed. 02535_ Trooper 1b destroyed. 02536_ The unstable cave ceiling collapses. 02543_ Lgt. Ion Engine destroyed. 02546_ R-06 Scavenger collects Ion Engine. 02549_ D-53 Grenadier destroyed. 02549_ Switching to secondary target: D-53 Grenadier. 02550_ R-06 Scavenger collects Aluminum Leg. 02554_ The unstable cave ceiling collapses. Map ----- +----------------------------------------------------+ | ?????????????????????????????????????????????? | | ?????????????????????????????????????????????? | | ?????????????????????????????????????????????? | | ?????????????????????????????????????????????? | | ?????????????????????????????????????????????? | | ?????????????????????????????????????????????? | | ?????????????????????????????????????????????? | | ?????????????????????????????????????????????? | | ?????????????????????????????????????????????? | | ?????????????????????????????????????????????? | | ?????????????????????????????????????????????? | | ?????????????????????????????????????????????? | | ?????????????????????????????????????????????? | | ?????????????????????????????????????????????? | | ?????????????????????????????????????????????? | | ?????????????????????????????????????????????? | | ?????????????????????????????????????????????? | | ?????????????????????????????????????????? ??? | | ????????????????????????????????????????? ?? | | ???????????????????????????????????????? ?? | | ??????????????????###?###????????????# #?? | | ?????????????????## # ##?????????# #??? | | ????????????????## ##?????# #???? | | ????????????????# # #??? #????? | | ???????????????### ## #?????? | | ???????????????# @ =d[% r# #?????? | | ???????????????# ### % #?????? | | ???????????????# #??# *% ?????? | | ??????????????## ##??##### ##??????? | | ?????????????## ##????????? #???????? | | ??????????#### ###????????????#???????? | | ??????????# #??????????????????????? | | ??????????# ##### ##??????????????????????? | | ??????????## ##???####???????????????????????? | | ???????????###???????????????????????????????? | | ?????????????????????????????????????????????? | | ?????????????????????????????????????????????? | | ?????????????????????????????????????????????? | | ?????????????????????????????????????????????? | | ?????????????????????????????????????????????? | | ?????????????????????????????????????????????? | | ?????????????????????????????????????????????? | | ?????????????????????????????????????????????? | | ?????????????????????????????????????????????? | | ?????????????????????????????????????????????? | | ?????????????????????????????????????????????? | | ?????????????????????????????????????????????? | | ?????????????????????????????????????????????? | | | | | +----------------------------------------------------+ Best States ------------- Heat Dissipation 25 Energy Generation 10 Energy Capacity 250 Matter Stores 300 Matter Capacity 300 Sight Range 16 Terrain Scan Density 10 Evasion (%) 42 Recoil Reduction 2 Item Schematics ----------------- None Robot Schematics ------------------ None Fabricated ------------ Nothing Alien Tech Used ----------------- None Achievements -------------- None Challenges ------------ None Game ------ Seed InsulationTeslaNegator Manual? 0 Play Time 00:13:22 Cumulative 267.0 hours Start 2019.11.14 @ 04:37:20 End 2019.11.14 @ 04:50:12 Sessions 1 Manual Loads 0 Difficulty Rogue Special Mode None Game No. 210 Rogue 210 Adventurer 0 Explorer 0 Win Type - Total 3 Types 3/0/0/0/0/0/0 Lore% 74 Gallery% 78 Achievement% 55 Wizard Run 0 Options --------- ASCII 0 Keyboard 0 Movement Mouse Keybinds 1 Fullscreen 2 Font 24/Smallcaps Map View 76x50 Tactical HUD 1 Map Filters NONE Filters NONE Steam 1 RUN: 78384ee6-7ba3-4305-a298-9f09b3e076f6